[Event "Late-Titled-Tuesday-Blitz-May-28-2024"]
[Site "Chess.com"]
[Date "2024.05.28"]
[Round "11"]
[White "DonMicheleCorleone"]
[Black "ValeriyGrinev"]
[Result "1-0"]
[WhiteElo "2525"]
[BlackElo "2572"]
[TimeControl "180+1"]
[EndTime "16:07:42 PDT"]
[Termination "DonMicheleCorleone won by checkmate"]

1. e4 {[%clk 0:03:00.9]} 1... c6 {[%clk 0:02:59.5]} 2. Nc3 {[%clk 0:03:00]} 2...
d5 {[%clk 0:03:00.4]} 3. Nf3 {[%clk 0:03:00.3]} 3... Bg4 {[%clk 0:02:57.1]} 4.
h3 {[%clk 0:03:00]} 4... Bxf3 {[%clk 0:02:56.8]} 5. Qxf3 {[%clk 0:02:59.5]} 5...
dxe4 {[%clk 0:02:57.7]} 6. Nxe4 {[%clk 0:02:59.1]} 6... Nd7 {[%clk 0:02:57.2]}
7. b3 {[%clk 0:02:59.1]} 7... Ngf6 {[%clk 0:02:55.6]} 8. Bb2 {[%clk 0:02:58.9]}
8... Nxe4 {[%clk 0:02:55.1]} 9. Qxe4 {[%clk 0:02:59.2]} 9... e6 {[%clk
0:02:55.6]} 10. O-O-O {[%clk 0:02:56.9]} 10... a5 {[%clk 0:02:54.9]} 11. g4
{[%clk 0:02:44.7]} 11... a4 {[%clk 0:02:51.4]} 12. f4 {[%clk 0:02:43.7]} 12...
axb3 {[%clk 0:02:49.3]} 13. axb3 {[%clk 0:02:43.4]} 13... Qa5 {[%clk 0:02:14.5]}
14. Bg2 {[%clk 0:02:14.6]} 14... Ba3 {[%clk 0:02:12.3]} 15. Qd4 {[%clk
0:02:14.2]} 15... e5 {[%clk 0:00:56.7]} 16. fxe5 {[%clk 0:02:03.9]} 16... O-O
{[%clk 0:00:50]} 17. Rhe1 {[%clk 0:01:34.4]} 17... Nc5 {[%clk 0:00:39.7]} 18.
Bxa3 {[%clk 0:01:24.4]} 18... Qxa3+ {[%clk 0:00:36.5]} 19. Qb2 {[%clk 0:01:25]}
19... Qb4 {[%clk 0:00:29.2]} 20. d4 {[%clk 0:01:21.5]} 20... Ne6 {[%clk
0:00:22.6]} 21. c3 {[%clk 0:00:59.5]} 21... Qb6 {[%clk 0:00:21.5]} 22. Kc2
{[%clk 0:00:57]} 22... Ra5 {[%clk 0:00:19.3]} 23. Ra1 {[%clk 0:00:56]} 23...
Rfa8 {[%clk 0:00:18.5]} 24. b4 {[%clk 0:00:52.5]} 24... Ra4 {[%clk 0:00:17.1]}
25. Rxa4 {[%clk 0:00:51.9]} 25... Rxa4 {[%clk 0:00:18]} 26. Ra1 {[%clk
0:00:52.2]} 26... Rxa1 {[%clk 0:00:16.7]} 27. Qxa1 {[%clk 0:00:53.1]} 27... Qb5
{[%clk 0:00:17.4]} 28. Kd2 {[%clk 0:00:25.6]} 28... g6 {[%clk 0:00:15.3]} 29.
Be4 {[%clk 0:00:19.1]} 29... Kg7 {[%clk 0:00:14]} 30. Qa2 {[%clk 0:00:12.2]}
30... Qf1 {[%clk 0:00:13.8]} 31. Bd3 {[%clk 0:00:10.3]} 31... Qxh3 {[%clk
0:00:11.9]} 32. d5 {[%clk 0:00:05.9]} 32... cxd5 {[%clk 0:00:11]} 33. Qxd5
{[%clk 0:00:05.6]} 33... Qxg4 {[%clk 0:00:06.9]} 34. Qxb7 {[%clk 0:00:04.8]}
34... Qf4+ {[%clk 0:00:06.1]} 35. Kc2 {[%clk 0:00:05]} 35... Qxe5 {[%clk
0:00:05.8]} 36. b5 {[%clk 0:00:05.1]} 36... Nc5 {[%clk 0:00:04.6]} 37. Qc6
{[%clk 0:00:04.3]} 37... Qh2+ {[%clk 0:00:03.9]} 38. Kd1 {[%clk 0:00:02.8]}
38... Nxd3 {[%clk 0:00:04]} 39. b6 {[%clk 0:00:02.5]} 39... Qg1+ {[%clk
0:00:03.1]} 40. Kd2 {[%clk 0:00:02.5]} 40... Nf4 {[%clk 0:00:03.2]} 41. Qd6
{[%clk 0:00:01.8]} 41... Qf2+ {[%clk 0:00:03.5]} 42. Kc1 {[%clk 0:00:01.8]}
42... Ne2+ {[%clk 0:00:03.9]} 43. Kb1 {[%clk 0:00:01.2]} 43... Nxc3+ {[%clk
0:00:04]} 44. Kc1 {[%clk 0:00:02.1]} 44... Ne2+ {[%clk 0:00:04.2]} 45. Kb1
{[%clk 0:00:02.2]} 45... Nc3+ {[%clk 0:00:04.4]} 46. Kc1 {[%clk 0:00:02.6]}
46... Qa2 {[%clk 0:00:04.1]} 47. Qd4+ {[%clk 0:00:02.2]} 47... f6 {[%clk
0:00:03.7]} 48. Qxc3 {[%clk 0:00:02.6]} 48... Qa6 {[%clk 0:00:03.4]} 49. Qc7+
{[%clk 0:00:02.4]} 49... Kh6 {[%clk 0:00:04.1]} 50. b7 {[%clk 0:00:03.1]} 50...
Qa1+ {[%clk 0:00:04.2]} 51. Kc2 {[%clk 0:00:03.3]} 51... Qa2+ {[%clk 0:00:05.1]}
52. Kc3 {[%clk 0:00:03.1]} 52... Qa3+ {[%clk 0:00:05.6]} 53. Kd4 {[%clk
0:00:02.5]} 53... Qb2+ {[%clk 0:00:05.8]} 54. Kd5 {[%clk 0:00:02.7]} 54... Qd2+
{[%clk 0:00:06]} 55. Ke6 {[%clk 0:00:02.5]} 55... Qe3+ {[%clk 0:00:06]} 56. Kd7
{[%clk 0:00:02.8]} 56... Qd4+ {[%clk 0:00:06]} 57. Kc8 {[%clk 0:00:02.8]} 57...
Qg4+ {[%clk 0:00:06.1]} 58. Qd7 {[%clk 0:00:03.1]} 58... Qc4+ {[%clk 0:00:05.8]}
59. Kd8 {[%clk 0:00:03.6]} 59... Qb4 {[%clk 0:00:05]} 60. Ke8 {[%clk 0:00:02.8]}
60... f5 {[%clk 0:00:04.3]} 61. Qc8 {[%clk 0:00:02.9]} 61... Qb5+ {[%clk
0:00:04]} 62. Kf8 {[%clk 0:00:02.8]} 62... Qb4+ {[%clk 0:00:04]} 63. Kg8 {[%clk
0:00:02.5]} 63... Qb3+ {[%clk 0:00:04.4]} 64. Kf8 {[%clk 0:00:03]} 64... Qb4+
{[%clk 0:00:04.6]} 65. Ke8 {[%clk 0:00:03.2]} 65... Qb5+ {[%clk 0:00:04.5]} 66.
Ke7 {[%clk 0:00:03.7]} 66... Qb4+ {[%clk 0:00:04.6]} 67. Ke6 {[%clk 0:00:03.9]}
67... Qb3+ {[%clk 0:00:04.5]} 68. Ke5 {[%clk 0:00:04.4]} 68... Qb2+ {[%clk
0:00:04.5]} 69. Kf4 {[%clk 0:00:04.4]} 69... Qd4+ {[%clk 0:00:04.8]} 70. Kf3
{[%clk 0:00:04.8]} 70... Qe4+ {[%clk 0:00:05.1]} 71. Kf2 {[%clk 0:00:05.4]}
71... Qd4+ {[%clk 0:00:05.5]} 72. Ke2 {[%clk 0:00:05.9]} 72... Qb2+ {[%clk
0:00:05.8]} 73. Kd3 {[%clk 0:00:06.3]} 73... Qb3+ {[%clk 0:00:06.3]} 74. Kd4
{[%clk 0:00:06.9]} 74... Qb6+ {[%clk 0:00:06.1]} 75. Kd5 {[%clk 0:00:07.1]}
75... Qb5+ {[%clk 0:00:06.3]} 76. Kd6 {[%clk 0:00:07.4]} 76... Qb6+ {[%clk
0:00:06.7]} 77. Kd7 {[%clk 0:00:08]} 77... Qb5+ {[%clk 0:00:07.2]} 78. Qc6
{[%clk 0:00:08.1]} 78... Qd3+ {[%clk 0:00:06]} 79. Kc8 {[%clk 0:00:07.3]} 79...
f4 {[%clk 0:00:05]} 80. b8=Q {[%clk 0:00:07]} 80... f3 {[%clk 0:00:05.5]} 81.
Qf4+ {[%clk 0:00:06.5]} 81... Kh5 {[%clk 0:00:04.6]} 82. Qcxf3+ {[%clk
0:00:06.1]} 82... Qxf3 {[%clk 0:00:04.2]} 83. Qxf3+ {[%clk 0:00:07]} 83... Kh4
{[%clk 0:00:04.9]} 84. Kd7 {[%clk 0:00:07.2]} 84... g5 {[%clk 0:00:05]} 85. Ke6
{[%clk 0:00:07.4]} 85... g4 {[%clk 0:00:05.4]} 86. Qh1+ {[%clk 0:00:07.6]} 86...
Kg3 {[%clk 0:00:05.5]} 87. Qxh7 {[%clk 0:00:06.4]} 87... Kf2 {[%clk 0:00:06.4]}
88. Qf5+ {[%clk 0:00:06.2]} 88... Kg3 {[%clk 0:00:06.4]} 89. Ke5 {[%clk
0:00:06.5]} 89... Kh4 {[%clk 0:00:05.8]} 90. Kf4 {[%clk 0:00:06.1]} 90... Kh3
{[%clk 0:00:06.3]} 91. Qxg4+ {[%clk 0:00:06.5]} 91... Kh2 {[%clk 0:00:07.2]} 92.
Kf3 {[%clk 0:00:06.6]} 92... Kh1 {[%clk 0:00:08.1]} 93. Qg2# {[%clk 0:00:06.9]}
1-0

[Event "Late-Titled-Tuesday-Blitz-May-28-2024"]
[Site "Chess.com"]
[Date "2024.05.28"]
[Round "11"]
[White "Oleg_Papayan"]
[Black "Kielinkei"]
[Result "1/2-1/2"]
[WhiteElo "2590"]
[BlackElo "2470"]
[TimeControl "180+1"]
[EndTime "16:07:59 PDT"]
[Termination "Game drawn - insufficient material"]

1. e4 {[%clk 0:02:48.4]} 1... c5 {[%clk 0:02:59.8]} 2. d4 {[%clk 0:02:48.3]}
2... cxd4 {[%clk 0:02:59.9]} 3. Qxd4 {[%clk 0:02:49.2]} 3... Nc6 {[%clk
0:02:59.7]} 4. Qd3 {[%clk 0:02:49.8]} 4... g6 {[%clk 0:03:00.3]} 5. Nc3 {[%clk
0:02:50.3]} 5... Bg7 {[%clk 0:03:00.7]} 6. Nf3 {[%clk 0:02:51]} 6... d6 {[%clk
0:03:00.8]} 7. Be2 {[%clk 0:02:51.7]} 7... Nf6 {[%clk 0:03:01.4]} 8. O-O {[%clk
0:02:52.3]} 8... O-O {[%clk 0:03:02.1]} 9. Nd5 {[%clk 0:02:52.6]} 9... Nxd5
{[%clk 0:02:58.2]} 10. exd5 {[%clk 0:02:53.5]} 10... Ne5 {[%clk 0:02:57]} 11.
Nxe5 {[%clk 0:02:51.4]} 11... Bxe5 {[%clk 0:02:57.9]} 12. c3 {[%clk 0:02:51.8]}
12... Bf5 {[%clk 0:02:56.6]} 13. Qd1 {[%clk 0:02:52]} 13... a6 {[%clk
0:02:52.8]} 14. a4 {[%clk 0:02:51.6]} 14... Qc7 {[%clk 0:02:42.8]} 15. a5 {[%clk
0:02:51.5]} 15... b5 {[%clk 0:02:37.8]} 16. axb6 {[%clk 0:02:32.8]} 16... Qxb6
{[%clk 0:02:37.7]} 17. Qa4 {[%clk 0:02:30.8]} 17... a5 {[%clk 0:02:35.9]} 18.
Qb5 {[%clk 0:02:26.4]} 18... Qc7 {[%clk 0:02:25.6]} 19. Ra2 {[%clk 0:02:06.6]}
19... Rfb8 {[%clk 0:02:21.2]} 20. Qa4 {[%clk 0:02:06.4]} 20... Bd7 {[%clk
0:02:12.2]} 21. Qc4 {[%clk 0:01:57]} 21... Qb7 {[%clk 0:02:05.3]} 22. Bg5 {[%clk
0:01:47.5]} 22... e6 {[%clk 0:01:53.8]} 23. Rfa1 {[%clk 0:01:20.7]} 23... Bb5
{[%clk 0:01:46.6]} 24. Qxb5 {[%clk 0:01:18.5]} 24... Qxb5 {[%clk 0:01:46.6]} 25.
Bxb5 {[%clk 0:01:19.4]} 25... Rxb5 {[%clk 0:01:47.2]} 26. dxe6 {[%clk
0:01:19.3]} 26... fxe6 {[%clk 0:01:48.1]} 27. Be3 {[%clk 0:01:04.7]} 27... a4
{[%clk 0:01:44.8]} 28. Kf1 {[%clk 0:01:02.4]} 28... Rab8 {[%clk 0:01:38.6]} 29.
Rxa4 {[%clk 0:00:58.3]} 29... Rxb2 {[%clk 0:01:38.9]} 30. Bd4 {[%clk 0:00:58.9]}
30... Rb1+ {[%clk 0:01:27.7]} 31. Rxb1 {[%clk 0:00:58.8]} 31... Rxb1+ {[%clk
0:01:27.8]} 32. Ke2 {[%clk 0:00:59.7]} 32... Bxd4 {[%clk 0:01:23.1]} 33. Rxd4
{[%clk 0:01:00.1]} 33... Rb6 {[%clk 0:01:20.7]} 34. Rc4 {[%clk 0:00:53.7]} 34...
Rb7 {[%clk 0:01:16.3]} 35. Rc6 {[%clk 0:00:53.2]} 35... Rd7 {[%clk 0:01:15.6]}
36. Ke3 {[%clk 0:00:50.4]} 36... Kf7 {[%clk 0:01:15.8]} 37. f4 {[%clk
0:00:50.9]} 37... Ke7 {[%clk 0:01:14.6]} 38. g4 {[%clk 0:00:49.5]} 38... Ra7
{[%clk 0:01:11.6]} 39. h4 {[%clk 0:00:46.3]} 39... Rb7 {[%clk 0:01:11.6]} 40.
Ra6 {[%clk 0:00:44.2]} 40... Rc7 {[%clk 0:01:10.6]} 41. Kd4 {[%clk 0:00:43.7]}
41... Kd7 {[%clk 0:01:04.7]} 42. c4 {[%clk 0:00:43.1]} 42... h5 {[%clk
0:00:52.6]} 43. gxh5 {[%clk 0:00:39.8]} 43... gxh5 {[%clk 0:00:53]} 44. Ra5
{[%clk 0:00:40.3]} 44... Ke7 {[%clk 0:00:36.4]} 45. Rxh5 {[%clk 0:00:41.2]}
45... Kf6 {[%clk 0:00:36.9]} 46. c5 {[%clk 0:00:24]} 46... dxc5+ {[%clk
0:00:30.8]} 47. Rxc5 {[%clk 0:00:24.9]} 47... Rh7 {[%clk 0:00:22.5]} 48. h5
{[%clk 0:00:25.4]} 48... Rd7+ {[%clk 0:00:18.5]} 49. Ke4 {[%clk 0:00:25.4]}
49... Rd1 {[%clk 0:00:19.2]} 50. Rc6 {[%clk 0:00:09.2]} 50... Re1+ {[%clk
0:00:17.5]} 51. Kf3 {[%clk 0:00:09.7]} 51... Kf5 {[%clk 0:00:16.2]} 52. Rc5+
{[%clk 0:00:08.1]} 52... Kf6 {[%clk 0:00:16.8]} 53. Rc2 {[%clk 0:00:05.7]} 53...
Rh1 {[%clk 0:00:16.7]} 54. Kg4 {[%clk 0:00:05.6]} 54... Rg1+ {[%clk 0:00:15.8]}
55. Kh4 {[%clk 0:00:05.7]} 55... Kf5 {[%clk 0:00:14.4]} 56. Rf2 {[%clk
0:00:02.3]} 56... Rh1+ {[%clk 0:00:13.5]} 57. Kg3 {[%clk 0:00:02.3]} 57... Rxh5
{[%clk 0:00:14.1]} 58. Rf3 {[%clk 0:00:02.3]} 58... Rh1 {[%clk 0:00:13.9]} 59.
Re3 {[%clk 0:00:02.9]} 59... Rg1+ {[%clk 0:00:14.2]} 60. Kf2 {[%clk 0:00:03.2]}
60... Rg4 {[%clk 0:00:13.1]} 61. Ke2 {[%clk 0:00:02.1]} 61... Rxf4 {[%clk
0:00:12.3]} 62. Kd3 {[%clk 0:00:02.8]} 62... Ra4 {[%clk 0:00:11.1]} 63. Rf3+
{[%clk 0:00:03.3]} 63... Ke5 {[%clk 0:00:10.8]} 64. Re3+ {[%clk 0:00:04]} 64...
Kd5 {[%clk 0:00:11.5]} 65. Ke2 {[%clk 0:00:04.4]} 65... Ra2+ {[%clk 0:00:11.5]}
66. Ke1 {[%clk 0:00:04.6]} 66... e5 {[%clk 0:00:09.5]} 67. Rb3 {[%clk
0:00:05.2]} 67... Kd4 {[%clk 0:00:09]} 68. Rh3 {[%clk 0:00:05.2]} 68... Rg2
{[%clk 0:00:08.9]} 69. Ra3 {[%clk 0:00:05]} 69... Rh2 {[%clk 0:00:08.8]} 70.
Ra4+ {[%clk 0:00:04.8]} 70... Ke3 {[%clk 0:00:07.9]} 71. Ra3+ {[%clk 0:00:05.1]}
71... Kf4 {[%clk 0:00:08.5]} 72. Ra4+ {[%clk 0:00:05.4]} 72... e4 {[%clk
0:00:08.1]} 73. Ra3 {[%clk 0:00:06]} 73... Rg2 {[%clk 0:00:08.1]} 74. Rb3 {[%clk
0:00:06.3]} 74... Rc2 {[%clk 0:00:08]} 75. Ra3 {[%clk 0:00:06.7]} 75... Ke5
{[%clk 0:00:08.2]} 76. Rb3 {[%clk 0:00:06.6]} 76... Kd4 {[%clk 0:00:08.5]} 77.
Ra3 {[%clk 0:00:07.1]} 77... Rb2 {[%clk 0:00:08.3]} 78. Rh3 {[%clk 0:00:06.7]}
78... Rb8 {[%clk 0:00:08.2]} 79. Rg3 {[%clk 0:00:06.7]} 79... Rf8 {[%clk
0:00:08.5]} 80. Ke2 {[%clk 0:00:06.9]} 80... Rh8 {[%clk 0:00:08.1]} 81. Ra3
{[%clk 0:00:05.8]} 81... Rh2+ {[%clk 0:00:07.2]} 82. Ke1 {[%clk 0:00:06.3]}
82... Rh5 {[%clk 0:00:08]} 83. Ke2 {[%clk 0:00:06.4]} 83... Rb5 {[%clk
0:00:07.9]} 84. Ra4+ {[%clk 0:00:05.9]} 84... Ke5 {[%clk 0:00:08.4]} 85. Ra3
{[%clk 0:00:06.1]} 85... Kf4 {[%clk 0:00:08.5]} 86. Rc3 {[%clk 0:00:05.5]} 86...
Rb2+ {[%clk 0:00:08.7]} 87. Ke1 {[%clk 0:00:06.2]} 87... e3 {[%clk 0:00:08.9]}
88. Rc8 {[%clk 0:00:06.1]} 88... Kf3 {[%clk 0:00:07.4]} 89. Rf8+ {[%clk
0:00:06.3]} 89... Ke4 {[%clk 0:00:08]} 90. Re8+ {[%clk 0:00:06.8]} 90... Kd3
{[%clk 0:00:08.8]} 91. Rd8+ {[%clk 0:00:07.3]} 91... Kc3 {[%clk 0:00:08.5]} 92.
Rc8+ {[%clk 0:00:07.6]} 92... Kd4 {[%clk 0:00:07.2]} 93. Rd8+ {[%clk 0:00:07.9]}
93... Ke4 {[%clk 0:00:07.8]} 94. Re8+ {[%clk 0:00:08.4]} 94... Kf5 {[%clk
0:00:07.3]} 95. Rxe3 {[%clk 0:00:08.2]} 95... Kf4 {[%clk 0:00:08]} 96. Re2
{[%clk 0:00:08.5]} 96... Rb1+ {[%clk 0:00:08.3]} 97. Kd2 {[%clk 0:00:08.8]}
97... Rb8 {[%clk 0:00:09.2]} 98. Re7 {[%clk 0:00:08.4]} 98... Rd8+ {[%clk
0:00:09.6]} 99. Ke2 {[%clk 0:00:08.7]} 99... Kf5 {[%clk 0:00:10.3]} 100. Rf7+
{[%clk 0:00:09.1]} 100... Ke6 {[%clk 0:00:10.7]} 101. Rb7 {[%clk 0:00:10]}
101... Rd5 {[%clk 0:00:11]} 102. Rb3 {[%clk 0:00:10.3]} 102... Re5+ {[%clk
0:00:11.6]} 103. Re3 {[%clk 0:00:11.2]} 103... Rxe3+ {[%clk 0:00:12.1]} 104.
Kxe3 {[%clk 0:00:12.1]} 1/2-1/2

[Event "Late-Titled-Tuesday-Blitz-May-28-2024"]
[Site "Chess.com"]
[Date "2024.05.28"]
[Round "11"]
[White "Hakiki_satranc"]
[Black "carloseduar100"]
[Result "1/2-1/2"]
[WhiteElo "2408"]
[BlackElo "2311"]
[TimeControl "180+1"]
[EndTime "16:09:17 PDT"]
[Termination "Game drawn by stalemate"]

1. e4 {[%clk 0:03:00.9]} 1... e6 {[%clk 0:02:57.7]} 2. d4 {[%clk 0:03:00.2]}
2... d5 {[%clk 0:02:56.4]} 3. Nd2 {[%clk 0:02:59.9]} 3... c5 {[%clk 0:02:55.7]}
4. exd5 {[%clk 0:02:59.5]} 4... Qxd5 {[%clk 0:02:55.3]} 5. Ngf3 {[%clk
0:02:59.3]} 5... cxd4 {[%clk 0:02:55.4]} 6. Bc4 {[%clk 0:02:59.8]} 6... Qd7
{[%clk 0:02:56.1]} 7. O-O {[%clk 0:02:59.2]} 7... Nc6 {[%clk 0:02:56.7]} 8. Nb3
{[%clk 0:02:58.7]} 8... Nf6 {[%clk 0:02:57.3]} 9. Nbxd4 {[%clk 0:02:56.3]} 9...
Nxd4 {[%clk 0:02:57.7]} 10. Qxd4 {[%clk 0:02:55.9]} 10... Qxd4 {[%clk
0:02:57.7]} 11. Nxd4 {[%clk 0:02:56.8]} 11... a6 {[%clk 0:02:58.2]} 12. a4
{[%clk 0:02:53.7]} 12... b6 {[%clk 0:02:55.1]} 13. Be2 {[%clk 0:02:49.3]} 13...
Bb7 {[%clk 0:02:55.2]} 14. Bf3 {[%clk 0:02:49.9]} 14... Bxf3 {[%clk 0:02:55.4]}
15. Nxf3 {[%clk 0:02:50.2]} 15... Bd6 {[%clk 0:02:49.5]} 16. Be3 {[%clk
0:02:47.2]} 16... Rb8 {[%clk 0:02:41.7]} 17. c4 {[%clk 0:02:44.8]} 17... Ke7
{[%clk 0:02:41.5]} 18. a5 {[%clk 0:02:31.6]} 18... b5 {[%clk 0:02:40.1]} 19. Nd4
{[%clk 0:02:15.3]} 19... bxc4 {[%clk 0:02:25.3]} 20. Nc6+ {[%clk 0:02:15]} 20...
Kd7 {[%clk 0:02:26]} 21. Nxb8+ {[%clk 0:02:15.6]} 21... Rxb8 {[%clk 0:02:26.9]}
22. Rfc1 {[%clk 0:02:09.3]} 22... Rxb2 {[%clk 0:02:19.1]} 23. Rxc4 {[%clk
0:02:07.9]} 23... Rb5 {[%clk 0:02:15.7]} 24. Kf1 {[%clk 0:01:46.8]} 24... Nd5
{[%clk 0:02:15.5]} 25. Bd2 {[%clk 0:01:43.7]} 25... g6 {[%clk 0:02:12.2]} 26. h4
{[%clk 0:01:40.5]} 26... h5 {[%clk 0:02:12.1]} 27. Be1 {[%clk 0:01:37.6]} 27...
Be7 {[%clk 0:02:04.4]} 28. Rcc1 {[%clk 0:01:37.4]} 28... Bxh4 {[%clk 0:01:54.5]}
29. Rab1 {[%clk 0:01:36.8]} 29... Rxb1 {[%clk 0:01:53.5]} 30. Rxb1 {[%clk
0:01:37.7]} 30... Bd8 {[%clk 0:01:48.6]} 31. Ke2 {[%clk 0:01:31]} 31... Bc7
{[%clk 0:01:37.9]} 32. g3 {[%clk 0:01:19.1]} 32... Kc6 {[%clk 0:01:26.3]} 33.
Bd2 {[%clk 0:01:17.8]} 33... Nf6 {[%clk 0:01:06]} 34. Rc1+ {[%clk 0:01:13.3]}
34... Kd7 {[%clk 0:01:05]} 35. Rd1 {[%clk 0:01:10.5]} 35... Nd5 {[%clk
0:01:04.3]} 36. Rb1 {[%clk 0:01:06.3]} 36... Kc6 {[%clk 0:01:02]} 37. Kd3 {[%clk
0:01:04.9]} 37... Bd8 {[%clk 0:00:57.3]} 38. Ke4 {[%clk 0:01:01.6]} 38... h4
{[%clk 0:00:56.1]} 39. g4 {[%clk 0:00:50]} 39... Nf6+ {[%clk 0:00:48.5]} 40. Kf3
{[%clk 0:00:48.8]} 40... Nd5 {[%clk 0:00:47.6]} 41. Rb8 {[%clk 0:00:41.2]} 41...
Kd7 {[%clk 0:00:42.8]} 42. g5 {[%clk 0:00:40.1]} 42... h3 {[%clk 0:00:35.4]} 43.
Rb1 {[%clk 0:00:38.7]} 43... Bc7 {[%clk 0:00:33.4]} 44. Kg4 {[%clk 0:00:33.2]}
44... h2 {[%clk 0:00:32.2]} 45. f4 {[%clk 0:00:29.8]} 45... e5 {[%clk
0:00:28.2]} 46. f5 {[%clk 0:00:24]} 46... e4 {[%clk 0:00:23.8]} 47. Rd1 {[%clk
0:00:20.4]} 47... Kc6 {[%clk 0:00:21.2]} 48. Rc1+ {[%clk 0:00:20.2]} 48... Kb5
{[%clk 0:00:20.5]} 49. Re1 {[%clk 0:00:18.9]} 49... e3 {[%clk 0:00:20.2]} 50.
Bc1 {[%clk 0:00:16.9]} 50... Bxa5 {[%clk 0:00:19.1]} 51. fxg6 {[%clk 0:00:14]}
51... fxg6 {[%clk 0:00:17.3]} 52. Rh1 {[%clk 0:00:13.2]} 52... Bc7 {[%clk
0:00:16.3]} 53. Kf3 {[%clk 0:00:13]} 53... Kc4 {[%clk 0:00:16.5]} 54. Bxe3
{[%clk 0:00:08.1]} 54... Nxe3 {[%clk 0:00:16.7]} 55. Kxe3 {[%clk 0:00:09]} 55...
Kd5 {[%clk 0:00:16.2]} 56. Kf3 {[%clk 0:00:08.6]} 56... Ke6 {[%clk 0:00:15.4]}
57. Kg2 {[%clk 0:00:08.8]} 57... Kf5 {[%clk 0:00:15.7]} 58. Ra1 {[%clk
0:00:07.7]} 58... a5 {[%clk 0:00:16]} 59. Rc1 {[%clk 0:00:07.3]} 59... Be5
{[%clk 0:00:15.2]} 60. Rc5 {[%clk 0:00:06.7]} 60... a4 {[%clk 0:00:15.3]} 61.
Ra5 {[%clk 0:00:06.8]} 61... a3 {[%clk 0:00:14.4]} 62. Kh1 {[%clk 0:00:04.4]}
62... a2 {[%clk 0:00:11.8]} 63. Rxa2 {[%clk 0:00:03.8]} 63... Kxg5 {[%clk
0:00:12.1]} 64. Ra5 {[%clk 0:00:04.5]} 64... Kf5 {[%clk 0:00:12.5]} 65. Kg2
{[%clk 0:00:04.5]} 65... g5 {[%clk 0:00:13]} 66. Rb5 {[%clk 0:00:05.3]} 66... g4
{[%clk 0:00:13.6]} 67. Rb4 {[%clk 0:00:05.3]} 67... g3 {[%clk 0:00:14.1]} 68.
Rb5 {[%clk 0:00:06.2]} 68... Kf4 {[%clk 0:00:14]} 69. Rb7 {[%clk 0:00:06.9]}
69... Kf5 {[%clk 0:00:14.3]} 70. Rf7+ {[%clk 0:00:07.7]} 70... Ke4 {[%clk
0:00:13.7]} 71. Rf3 {[%clk 0:00:08.6]} 71... Bf4 {[%clk 0:00:14.1]} 72. Rb3
{[%clk 0:00:08.6]} 72... Kf5 {[%clk 0:00:14.6]} 73. Rb4 {[%clk 0:00:08.6]} 73...
Kg4 {[%clk 0:00:14.4]} 74. Ra4 {[%clk 0:00:09.2]} 74... Kf5 {[%clk 0:00:14.8]}
75. Ra5+ {[%clk 0:00:09.3]} 75... Kg4 {[%clk 0:00:15.3]} 76. Rb5 {[%clk
0:00:09]} 76... Bd6 {[%clk 0:00:11.9]} 77. Rb1 {[%clk 0:00:09.1]} 77... Bf4
{[%clk 0:00:12.2]} 78. Rd1 {[%clk 0:00:07.5]} 78... Be5 {[%clk 0:00:10.9]} 79.
Re1 {[%clk 0:00:07.4]} 79... Bf4 {[%clk 0:00:09.8]} 80. Ra1 {[%clk 0:00:07.9]}
80... Be5 {[%clk 0:00:09.8]} 81. Ra4+ {[%clk 0:00:08.4]} 81... Kf5 {[%clk
0:00:10]} 82. Rc4 {[%clk 0:00:06.8]} 82... Ke6 {[%clk 0:00:09.9]} 83. Rc1 {[%clk
0:00:06.9]} 83... Kd5 {[%clk 0:00:10]} 84. Kf3 {[%clk 0:00:06.7]} 84... Ke6
{[%clk 0:00:07.4]} 85. Re1 {[%clk 0:00:06.6]} 85... Kf5 {[%clk 0:00:07.5]} 86.
Rb1 {[%clk 0:00:07]} 86... Bd6 {[%clk 0:00:07.8]} 87. Rb5+ {[%clk 0:00:06.6]}
87... Be5 {[%clk 0:00:08.3]} 88. Rb1 {[%clk 0:00:05.9]} 88... Bd6 {[%clk
0:00:08]} 89. Rd1 {[%clk 0:00:04.8]} 89... Be5 {[%clk 0:00:07.9]} 90. Re1 {[%clk
0:00:04.4]} 90... Bd6 {[%clk 0:00:08.2]} 91. Rb1 {[%clk 0:00:04.1]} 91... Be5
{[%clk 0:00:07.4]} 92. Rd1 {[%clk 0:00:05]} 92... Ke6 {[%clk 0:00:07.1]} 93. Kg2
{[%clk 0:00:05]} 93... Kf5 {[%clk 0:00:07.4]} 94. Rf1+ {[%clk 0:00:05.3]} 94...
Bf4 {[%clk 0:00:07.9]} 95. Rf3 {[%clk 0:00:05.3]} 95... Kg4 {[%clk 0:00:08]} 96.
Rb3 {[%clk 0:00:05.4]} 96... Kf5 {[%clk 0:00:07.4]} 97. Rb7 {[%clk 0:00:05.8]}
97... Kg4 {[%clk 0:00:07.7]} 98. Rf7 {[%clk 0:00:06.1]} 98... Bg5 {[%clk
0:00:08.5]} 99. Rf3 {[%clk 0:00:05]} 99... Bf4 {[%clk 0:00:08.2]} 100. Rd3
{[%clk 0:00:04.9]} 100... Bg5 {[%clk 0:00:08.5]} 101. Rd7 {[%clk 0:00:03.8]}
101... Bf6 {[%clk 0:00:08.1]} 102. Rf7 {[%clk 0:00:03.8]} 102... Be5 {[%clk
0:00:07.3]} 103. Rf8 {[%clk 0:00:03.7]} 103... Bf4 {[%clk 0:00:06.6]} 104. Rg8+
{[%clk 0:00:04.2]} 104... Bg5 {[%clk 0:00:07]} 105. Rg7 {[%clk 0:00:04.1]}
105... Kf4 {[%clk 0:00:06.6]} 106. Rh7 {[%clk 0:00:04.2]} 106... Kg4 {[%clk
0:00:06.6]} 107. Rh8 {[%clk 0:00:04]} 107... Bf4 {[%clk 0:00:06.5]} 108. Rh3
{[%clk 0:00:03.4]} 108... Be5 {[%clk 0:00:04.2]} 109. Rh7 {[%clk 0:00:04]}
109... Bf4 {[%clk 0:00:04.4]} 110. Rg7+ {[%clk 0:00:04.2]} 110... Bg5 {[%clk
0:00:04.6]} 111. Rg8 {[%clk 0:00:04.9]} 111... Kf4 {[%clk 0:00:04.6]} 112. Rg6
{[%clk 0:00:04.4]} 112... Kg4 {[%clk 0:00:04.1]} 113. Rg8 {[%clk 0:00:04.8]}
113... Kf4 {[%clk 0:00:04.4]} 114. Rf8+ {[%clk 0:00:05.3]} 114... Kg4 {[%clk
0:00:04.8]} 115. Rf1 {[%clk 0:00:06.2]} 115... Bf4 {[%clk 0:00:05.2]} 116. Rf3
{[%clk 0:00:06.1]} 116... h1=Q+ {[%clk 0:00:04.8]} 117. Kxh1 {[%clk 0:00:06.2]}
117... Kxf3 {[%clk 0:00:05.7]} 118. Kg1 {[%clk 0:00:07.1]} 118... g2 {[%clk
0:00:06.2]} 1/2-1/2